[Event "1000 GM Labor Day Super Swiss 2024"]
[Site "San Jose"]
[Date "2024.09.01"]
[Round "4.21"]
[White "Montes Orozco, Miguel Angel"]
[Black "Biyiasas, Theodore"]
[Result "1-0"]
[Annotator "TA"]
[ECO "B58"]
[WhiteElo "2155"]
[BlackElo "1973"]
[PlyCount "73"]
[EventDate "2024.08.30"]
[EventType "swiss"]
[EventCountry "USA"]
[SourceTitle "playchess.com"]
[Source "ChessBase"]
[SourceQuality "1"]
[TimeControl "5400+30"]

{[%evp 13,73,6,24,11,32,0,18,12,20,42,45,0,72,18,21,-13,4,0,20,0,0,0,66,76,66,66,62,15,18,20,13,0,0,0,0,0,0,0,159,159,152,153,195,29,25,30,41,27,982,975,12437,2200,5440,5406,5404,5389,5314,5306,2179,2179,29981,29982]} 1. e4 {[%emt 0:00:05]} c5 {[%emt 0:00:06]} 2. Nf3 {[%emt 0:00:06]} d6 {[%emt 0:00:07]} 3. d4 {[%emt 0:00:48]} cxd4 {[%emt 0:00:07]} 4. Nxd4 {[%emt 0:00:05]} Nf6 {[%emt 0:00:08]} 5. Nc3 {[%emt 0:00:08]} Nc6 {[%emt 0:00:09]} 6. Be2 {[%emt 0:06:14]} e5 {[%emt 0:01:37]} 7. Nf3 {[%emt 0:01:46]} Be7 {[%emt 0:02:11]} 8. Bg5 {[%emt 0:08:27]} Be6 {[%emt 0:10:18]} 9. Qd2 {[%emt 0:04:00]} O-O {[%emt 0:11:41]} 10. O-O {[%emt 0:06:05] The position is equal.} h6 {[%emt 0:12:01]} 11. Bxf6 {[%emt 0:02:20]} Bxf6 {[%emt 0:01:28]} 12. Rfd1 {[%emt 0:00:23][%cal Oc3d5]} Be7 {[%emt 0:01:20]} (12... Qb6 $11) 13. Nb5 {[%emt 0:05:32]} (13. Nd5 $16) 13... Qb6 {[%emt 0:04:22]} 14. a4 {[%emt 0:00:34][%cal Oa4a5]} a5 {[%emt 0:13:55]} 15. Na3 {[%emt 0:23:36]} Rfd8 {[%emt 0:11:43][%cal Od6d5]} (15... Qxb2 $2 16. Rdb1 Bg5 17. Nxg5 $18 (17. Rxb2 Bxd2 18. Nxd2 d5 $18)) 16. Nc4 {[%emt 0:04:08]} Qc7 {[%emt 0:04:10]} 17. Ne3 {[%emt 0:03:07]} Nd4 {[%emt 0:05:08]} 18. Nxd4 $14 {[%emt 0:03:24]} exd4 {[%emt 0:00:07]} 19. Qxd4 {[%emt 0:00:02]} Bf6 {[%emt 0:00:20][%cal Be7f6,Bf6b2,Bb2c3,Bc3b4,Bb4c5,Bc5f2][%mdl 32]} 20. Qd3 {[%emt 0:00:32]} (20. Nd5 $14 {might be stronger.} Bxd5 21. Qxd5 Qxc2 22. Bc4 Bxb2 23. Ra2 (23. Qxf7+ Kh8 $15)) 20... Bxb2 $11 {[%emt 0:00:48] This pair of bishops is nice.} 21. Rab1 {[%emt 0:00:03]} Bc3 {[%emt 0:03:22]} 22. Bg4 {[%emt 0:00:55]} Bb4 {[%emt 0:03:20]} 23. Bxe6 {[%emt 0:09:55]} fxe6 {[%emt 0:00:02]} 24. Qb3 {[%emt 0:00:09]} Re8 {[%emt 0:03:19]} 25. Rd3 {[%emt 0:00:26]} Re7 $2 {[%emt 0:01:11] [#] Black is weak on the light squares} (25... Qc6 $11) 26. c3 $1 $36 {[%emt 0:01:40][%mdl 2048] Black is under strong pressure.} Bc5 {[%emt 0:00:19]} 27. Nf5 {[%emt 0:00:06] White is more active.} b6 {[%emt 0:08:13]} ({Don't blunder} 27... Ree8 $2 28. Rg3 (28. Qxb7 $2 {perishes.} Rab8 $19) 28... Kh8 29. Rxg7 $18 (29. Qxb7 $2 Rab8 $19)) 28. e5 $2 {[%emt 0:07:32]} (28. Nxe7+ $18 Qxe7 29. Rf3) 28... Rf7 $11 {[%emt 0:01:46]} 29. Qxe6 {[%emt 0:01:46]} dxe5 {[%emt 0:00:39]} 30. Rbd1 {[%emt 0:00:59]} Kh7 {[%emt 0:00:17][%mdl 8192] [#] This costs Black the game.} (30... Kh8 $11) 31. Rd7 $18 {[%emt 0:00:49]} Bxf2+ {[%emt 0:01:09]} 32. Kh1 {[%emt 0:00:35]} (32. Kxf2 $142 Raf8 33. Rxc7 Rxc7 34. Rd7 (34. Qxe5 Rcf7 $18) 34... Rxd7 35. Qxd7) 32... Raf8 {[%emt 0:00:35]} 33. Rxc7 {[%emt 0:00:29]} Rxc7 {[%emt 0:00:06]} 34. Rd7 {[%emt 0:00:39]} Rxd7 {[%emt 0:00:46]} 35. Qxd7 {[%emt 0:00:08]} Rg8 {[%emt 0:00:25]} 36. Ne7 {[%emt 0:00:10]} Rf8 {[%emt 0:00:23]} 37. Qd3+ {[%emt 0:00:08] Weighted Error Value: White=0.23 (precise) /Black=0.56.  Loses game:     	---       	Black=1      Missed win:     	White=1     	---        Mistake:       	White=2     	Black=3      Inaccurate:     	White=2     	Black=1      OK:         	White=8     	Black=8      Best:        	White=4     	Black=3} 1-0

[Event "1000 GM Labor Day Super Swiss 2024"]
[Site "San Jose"]
[Date "2024.09.01"]
[Round "4.22"]
[White "Gonzalez Zharikov, Andrey"]
[Black "Alfaro, William"]
[Result "1/2-1/2"]
[Annotator "TA"]
[ECO "E65"]
[WhiteElo "2070"]
[BlackElo "2137"]
[PlyCount "72"]
[EventDate "2024.08.30"]
[EventType "swiss"]
[EventCountry "USA"]
[SourceTitle "playchess.com"]
[Source "ChessBase"]
[SourceQuality "1"]
[TimeControl "5400+30"]

{[%evp 22,72,-16,-10,-31,-118,-89,-94,-96,-116,-50,-58,-70,-106,-83,-99,-110,-94,-95,-107,-65,-60,-60,-115,-88,-110,-106,-137,-76,-100,-111,-85,-45,-44,-43,-56,-79,-72,0,0,0,0,0,0,0,0,0,0,0,0,0,0,0]} 1. d4 {[%emt 0:00:01]} Nf6 {[%emt 0:14:17]} 2. Nf3 {[%emt 0:00:10]} g6 {[%emt 0:01:05]} 3. g3 {[%emt 0:00:07]} Bg7 {[%emt 0:00:35]} 4. Bg2 {[%emt 0:00:06]} O-O {[%emt 0:00:06]} 5. O-O {[%emt 0:00:05]} d6 {[%emt 0:01:39]} 6. c4 {[%emt 0:00:23]} c5 {[%emt 0:06:20]} 7. Nc3 {[%emt 0:01:11]} Nc6 {[%emt 0:00:39]} 8. h3 {[%emt 0:04:04]} Nxd4 {[%emt 0:04:25]} 9. Nxd4 {[%emt 0:00:48]} cxd4 {[%emt 0:00:05]} 10. Qxd4 {[%emt 0:01:38]} Be6 {[%emt 0:00:31]} 11. Qh4 {[%emt 0:20:53]} Rc8 {[%emt 0:05:33]} 12. b3 {[%emt 0:11:43][%cal Oc1e3]} Rc5 {[%emt 1:01:15]} 13. g4 {[%emt 0:12:53] [#] Prevents Rh5} (13. Bxb7 $2 Rh5 14. Qf4 Bxh3 $19) ({Better is} 13. Bf3 $15) 13... Nxg4 $1 $17 {[%emt 0:00:00][%mdl 512]} 14. hxg4 {[%emt 0:00:21]} Bxc3 {[%emt 0:00:00] Black is better.} 15. Rb1 {[%emt 0:00:03][%cal Oc1e3]} Bf6 {[%emt 0:00:00]} ({Black should try} 15... h5 $17 16. Be3 Re5) 16. g5 $15 {[%emt 0:00:52]} Bg7 {[%emt 0:00:00]} 17. Be3 {[%emt 0:09:18]} Ra5 {[%emt 0:00:00]} 18. a4 {[%emt 0:03:12]} Qd7 {[%emt 0:00:00]} 19. Rbd1 {[%emt 0:02:20]} b6 {[%emt 0:00:00]} 20. f4 {[%emt 0:02:00]} h5 {[%emt 0:00:00]} 21. Bd2 {[%emt 0:00:52]} Rc5 {[%emt 0:00:00]} 22. e4 {[%emt 0:00:08]} (22. Bb4 $15) 22... Bg4 $17 {[%emt 0:00:00]} 23. Rde1 {[%emt 0:00:04]} Bd4+ {[%emt 0:00:00]} 24. Kh1 {[%emt 0:00:01] [#]} e6 {[%emt 0:00:00]} (24... a6 $142 $1 {And now ...b5 would win.} 25. Qg3 b5 26. cxb5 axb5) 25. Bf3 {[%emt 0:02:19]} Bxf3+ {[%emt 0:00:00]} 26. Rxf3 {[%emt 0:00:01]} d5 {[%emt 0:00:00]} 27. exd5 {[%emt 0:02:27]} exd5 {[%emt 0:00:00]} 28. Bb4 {[%emt 0:00:34]} dxc4 $1 {[%emt 0:00:00]} 29. Bxc5 {[%emt 0:00:31]} bxc5 {[%emt 0:00:00]} ({Black should play} 29... Bxc5 $17 30. f5 cxb3 (30... gxf5 31. Qxc4 Rd8 32. Ref1 $16)) 30. bxc4 $11 {[%emt 0:01:51] The position is equal.} Re8 {[%emt 0:00:00]} 31. Rxe8+ {[%emt 0:03:24]} Qxe8 {[%emt 0:00:00] KQR-KQB} 32. f5 {[%emt 0:01:44]} Qe2 {[%emt 0:00:00]} 33. Qh3 {[%emt 0:00:10]} Qe1+ {[%emt 0:00:00]} 34. Rf1 {[%emt 0:00:36]} Qe4+ {[%emt 0:00:00]} 35. Rf3 {[%emt 0:03:16]} Qe1+ {[%emt 0:00:00]} 36. Rf1 {[%emt 0:00:06]} Qe4+ {[%emt 0:00:00] Weighted Error Value: White=0.16 (very precise) /Black=0.16 (very precise) .  Mistake:       	White=2     	Black=3      Inaccurate:     	White=1     	Black=2      OK:         	White=9     	Black=5      Best:        	White=4     	Black=2      Strong:       	---       	Black=1      Brilliant:      	---       	Black=1} 1/2-1/2